Workbook

Sheet 19.04.2021г-24.04.2021г
A1: Согласовано | M1: Утверждаю
A2: Директор ООО "Эталон+" | M2: Директор МБОУ СОШ№
A3: Подин В.А.
B5: Недельное меню для обучающихся в общеобразовательных организациях | O5: 2022 год
A6: 1 день 2 неделя март , апрель , май,
A7: 1-4классы
A8: Рецептура | B8: Наименование блюд | D8: Выход,г | E8: Цена | F8: Белки,г | G8: Жиры,г | H8: Углеводы,г | I8: Калорийность,ккал | J8: Вит.В1,мг | K8: Вит.С,мг | L8: Вит.А,мг | M8: Вит.Е,мг | N8: Са,мг | O8: Р,мг | P8: Mg,мг | Q8: Fe,мг
A9: №45 сбор рец для обуч дели 2011 | B9: Капуства тушеная | D9: 60 | F9: 1.080 | G9: 1.640 | H9: 4.700 | I9: 38 | J9: 0.200 | K9: 8.240 | L9: 0.010 | M9: 0.100 | N9: 25.650 | O9: 0.010 | P9: 9.800 | Q9: 0.380
A10: №293 | B10: Котлеты рубленные из брол.цыплят | D10: 80 | F10: 10.240 | G10: 5.370 | H10: 19.360 | I10: 0 | J10: 0.080 | K10: 0.000 | L10: 0.000 | M10: 0.000 | N10: 89.430 | O10: 158.000 | P10: 0.640 | Q10: 0.300
A11: ДеЛи,2011-544с,№376 | B11: Соус сметанный с томатом | D11: 50 | F11: 0.880 | G11: 2.490 | H11: 3.510 | I11: 40 | J11: 0.120 | K11: 0.000 | L11: 0.000 | M11: 1.250 | N11: 14.620 | O11: 4.890 | P11: 0.014 | Q11: 0.190
A12: 291 | B12: Каша гречнева рас | D12: 150 | F12: 6.662 | G12: 9.024 | H12: 34.000 | I12: 170 | J12: 0.292 | K12: 0.000 | L12: 0.000 | M12: 0.511 | N12: 44.822 | O12: 204.660 | P12: 48.600 | Q12: 1.310
A13: №376 | B13: Чай с сахаром | D13: 200/15 | F13: 0.530 | G13: 0.000 | H13: 9.470 | I13: 40 | J13: 0.000 | K13: 0.270 | L13: 0.000 | M13: 0.000 | N13: 13.600 | O13: 22.130 | P13: 11.730 | Q13: 0.100
B14: Хлеб сельский,1с | D14: 20 | F14: 1.000 | G14: 0.200 | H14: 9.000 | I14: 44 | J14: 0.014 | K14: 0.000 | L14: 0.000 | M14: 0.108 | N14: 2.760 | O14: 12.720 | P14: 3.000 | Q14: 0.372
B15: Хлеб пшеничный | D15: 30 | F15: 2.280 | G15: 0.240 | H15: 14.760 | I15: 71 | J15: 0.033 | K15: 0.000 | L15: 0.000 | M15: 0.330 | N15: 6.000 | O15: 19.500 | P15: 4.200 | Q15: 0.330
A16: Итого по питанию: | F16: =SUM(F9:F15) -> 22.672 | G16: 18.964 | H16: 94.800 | I16: 403 | J16: 0.739 | K16: 8.510 | L16: 0.010 | M16: 2.299 | N16: 196.882 | O16: 421.910 | P16: 77.984 | Q16: 2.982
A17: 5-11классы
A18: 45 | B18: Капуста тушенная | D18: 100 | E18: 9.00 | F18: 2.160 | G18: 3.280 | H18: 9.400 | I18: 76 | J18: 0.400 | K18: 16.480 | L18: 0.020 | M18: 0.200 | N18: 51.3 | O18: 0.020 | P18: 19.600 | Q18: 0.760
A19: №291 | B19: Каша гречневая расс | D19: 180 | F19: 7.943 | G19: 10.820 | H19: 40.790 | I19: 204 | J19: 0.350 | K19: 0.000 | L19: 0.000 | M19: 0.561 | N19: 44.820 | O19: 204.660 | P19: 48.600 | Q19: 1.310
A20: 293 | B20: Котлеты рубленные из брол.цыплят | D20: 80 | E20: 20.91 | F20: 10.240 | G20: 5.370 | H20: 19.360 | I20: 0 | J20: 0.080 | K20: 0.000 | L20: 0.000 | M20: 0.000 | N20: 89.430 | O20: 158.000 | P20: 0.640 | Q20: 0.300
A21: №376 | B21: Чай с сахаром | D21: 200/15 | E21: 1.77 | F21: 0.530 | G21: 0.000 | H21: 9.470 | I21: 40 | J21: 0.000 | K21: 0.270 | L21: 0.000 | M21: 0.000 | N21: 13.600 | O21: 22.130 | P21: 11.730 | Q21: 0.100
B22: Хлеб пшеничный | D22: 30 | F22: 2.280 | G22: 0.240 | H22: 14.760 | I22: 71 | J22: 0.033 | K22: 0.000 | L22: 0.000 | M22: 0.330 | N22: 6.000 | O22: 19.500 | P22: 4.200 | Q22: 0.330
B23: Булочка сбобная | D23: 50 | F23: 3.800 | G23: 5.100 | H23: 23.170 | I23: 164 | J23: 0.050 | K23: 0.020 | L23: 0.000 | M23: 0.000 | N23: 21.670 | O23: 0.000 | P23: 0.000 | Q23: 0.420
B24: Хлеб сельский, | D24: 20 | E24: 2.60 | F24: 1.000 | G24: 0.200 | H24: 9.000 | I24: 44 | J24: 0.014 | K24: 0.000 | L24: 0.000 | M24: 0.108 | N24: 2.760 | O24: 12.720 | P24: 3.000 | Q24: 0.372
A25: Итого по питанию: | E25: =SUM(E18:E24) -> 34.28 | F25: 27.953 | G25: 25.010 | H25: 125.950 | I25: 599 | J25: 0.927 | K25: 16.770 | L25: =SUM(L20:L24) -> 0.000 | M25: 1.199 | N25: 178.280 | O25: 417.030 | P25: 87.770 | Q25: 3.592
A26: ГПД:
A27: №138,2004г | B27: Суп картофельный с крупой рисовой | D27: 250 | E27: 9.30 | F27: 2.690 | G27: 2.840 | H27: 17.400 | I27: 105 | J27: 0.110 | K27: 8.250 | L27: 0.000 | M27: 0.000 | N27: 211.600 | O27: 0.000 | P27: 0.000 | Q27: 1.090
A28: ДеЛи,2011-544с,№376 | B28: Компот из с/фруктов | D28: 200 | E28: 3.53 | F28: 1.000 | G28: 0.005 | H28: 27.500 | I28: 110 | J28: 0.010 | K28: 0.320 | L28: 0.010 | M28: 0.010 | N28: 28.890 | O28: 10.000 | P28: 18.970 | Q28: 0.610
B29: Хлеб пшеничный | D29: 30 | E29: 2.08 | F29: 2.28 | G29: 0.24 | H29: 14.76 | I29: 71 | J29: 0.033 | K29: 0.00 | L29: 0 | M29: 0.33 | N29: 6 | O29: 19.5 | P29: 4.2 | Q29: 0.33
A30: Итого по питанию: | E30: =SUM(E27:E29) -> 14.91 | F30: =SUM(F27:F29) -> 5.970 | G30: 3.085 | H30: 59.660 | I30: 286 | J30: 0.120 | K30: 8.570 | L30: 0.010 | M30: 0.340 | N30: 246.490 | O30: 29.500 | P30: 23.170 | Q30: 1.700
A31: 2 день 2 неделя
A32: 1-4классы
A33: №52 | B33: Салат из свеклы отварной | D33: 60 | F33: 0.855 | G33: 3.653 | H33: 11.580 | I33: 56 | J33: 0.011 | K33: 7.700 | L33: 0.000 | M33: 0.641 | N33: 121.090 | O33: 84.582 | P33: 12.540 | Q33: 0.198
B34: Пюре гороховое | D34: 150/5 | F34: 14.700 | G34: 5.100 | H34: 33.150 | I34: 240 | J34: 0.450 | K34: 0.000 | L34: 0.000 | M34: 6.370 | N34: 78.150 | O34: 0.000 | P34: 0.000 | Q34: 6.370
A35: №266 Дели2015 | B35: Бифтшекс рубный | D35: 80 | F35: 8.320 | G35: 7.150 | H35: 0.000 | I35: 200 | J35: 0.040 | K35: 0.000 | L35: 0.000 | M35: 1.343 | N35: 11.010 | O35: 127.020 | P35: 6.000 | Q35: 1.100
A36: №376 | B36: Чай с сахаром | D36: 200/15 | F36: 0.530 | G36: 0.000 | H36: 9.470 | I36: 40 | J36: 0.000 | K36: 0.270 | L36: 0.000 | M36: 0.000 | N36: 13.600 | O36: 22.130 | P36: 11.730 | Q36: 0.100
B37: Хлеб сельский,1с | D37: 20 | F37: 1.000 | G37: 0.200 | H37: 9.000 | I37: 44 | J37: 0.014 | K37: 0.000 | L37: 0.000 | M37: 0.108 | N37: 2.760 | O37: 12.720 | P37: 3.000 | Q37: 0.372
B38: Хлеб пшеничный | D38: 30 | F38: 2.280 | G38: 0.240 | H38: 14.760 | I38: 71 | J38: 0.033 | K38: 0.000 | L38: 0.000 | M38: 0.330 | N38: 6.000 | O38: 19.500 | P38: 4.200 | Q38: 0.330
A39: Итого по питанию: | F39: =SUM(F33:F38) -> 27.685 | G39: 16.343 | H39: 77.960 | I39: 651 | J39: 0.548 | K39: 7.970 | L39: 0.000 | M39: 8.792 | N39: 232.610 | O39: 265.952 | P39: 37.470 | Q39: 8.470
A40: 5-11классы
A41: №175Дели | B41: Каша молочная " Дружба" | D41: 200/10 | E41: 9.30 | F41: 7.20 | G41: 11.40 | H41: 43.50 | I41: 304.70 | J41: 0.10 | K41: 9.98 | L41: 0.00 | M41: 0.00 | N41: 44.00 | O41: 0.00 | P41: 0.00 | Q41: 8.40
A42: №338 | B42: Фрукты | D42: 100 | F42: 0.40 | G42: 0.40 | H42: 7.35 | I42: 47.00 | J42: 0.03 | K42: 8.00 | L42: 0.00 | M42: 0.10 | N42: 16.00 | O42: 11.00 | P42: 9.00 | Q42: 0.03
A43: Дели | B43: Булочка Домашняя | D43: 50 | E43: 8.80 | F43: 3.8 | G43: 5.1 | H43: 23.17 | I43: 164.3 | J43: 0.05 | K43: 0.02 | L43: 0 | M43: 0 | N43: 21.67 | O43: 0 | P43: 0 | Q43: 0.42
A44: №376 | B44: Чай с сахаром | D44: 200/15 | E44: 1.77 | F44: 0.53 | G44: 0.00 | H44: 9.47 | I44: 40.00 | J44: 0.00 | K44: 0.27 | L44: 0.00 | M44: 0.00 | N44: 13.60 | O44: 22.13 | P44: 11.73 | Q44: 0.10
B45: Хлеб пшеничный | D45: 30 | F45: 2.38 | G45: 0.24 | H45: 14.76 | I45: 71.00 | J45: 0.03 | K45: 0.00 | L45: 0.00 | M45: 0.33 | N45: 6.00 | O45: 19.50 | P45: 4.20 | Q45: 0.33
B46: Хлеб сельский | D46: 20 | E46: 2.60 | F46: 1.000 | G46: 0.200 | H46: 9.000 | I46: 44 | J46: 0.014 | K46: 0.000 | L46: 0.000 | M46: 0.108 | N46: 2.760 | O46: 12.720 | P46: 3.000 | Q46: 0.372
A47: Итого по питанию: | E47: =SUM(E41:E46) -> 22.47 | F47: 11.49 | G47: 14.15 | H47: 93.58 | I47: 530.00 | J47: 0.19 | K47: 31.10 | L47: =SUM(L41:L46) -> 0.00 | M47: 1.61 | N47: 305.84 | O47: 206.32 | P47: 48.83 | Q47: 9.98
A48: ГПД:
B49: Каша пшеничная молочная | D49: 150/5 | E49: 9.30 | F49: 8.55 | G49: 7.23 | H49: 41.17 | I49: 270.05 | J49: 0.21 | K49: 0.00 | L49: 0.00 | M49: 0.00 | N49: 14.00 | O49: 0.00 | P49: 0.00 | Q49: 0.42
A50: №388 Дели | B50: Напиток из шиповника | D50: 200 | E50: 3.53 | F50: 0.700 | G50: 0.800 | H50: 28.800 | I50: 133 | J50: 0.000 | K50: 0.200 | L50: 80.000 | M50: 0.000 | N50: 18.900 | O50: 3.100 | P50: 4.800 | Q50: 0.500
B51: Хлеб пшеничный | D51: 40 | E51: 2.08 | F51: 3.173 | G51: 0.32 | H51: 19.68 | I51: 94.66 | J51: 0.044 | K51: 0 | L51: 0 | M51: 0.44 | N51: 8 | O51: 26 | P51: 5.6 | Q51: 0.44
A52: Итого по питанию: | E52: =SUM(E49:E51) -> 14.91 | F52: =SUM(F49:F51) -> 12.423 | G52: 8.350 | H52: 89.650 | I52: 498 | J52: 0.254 | K52: 0.200 | L52: 80.000 | M52: 0.440 | N52: 40.900 | O52: 29.100 | P52: 10.400 | Q52: 1.360
A53: 3 день 2 неделя
A54: 1-4классы
A55: №62 | B55: Капуста тушенная | D55: 60 | F55: 1.08 | G55: 1.64 | H55: 4.70 | I55: 38.00 | J55: 0.20 | K55: 8.24 | L55: 0.01 | M55: 0.10 | N55: 25.65 | O55: 0.01 | P55: 9.80 | Q55: 0.38
A56: №338 | B56: Фрукты | D56: 100 | F56: 0.40 | G56: 0.40 | H56: 7.35 | I56: 47.00 | J56: 0.03 | K56: 8.00 | L56: 0.00 | M56: 0.20 | N56: 46.00 | O56: 11.00 | P56: 0.10 | Q56: 0.00
A57: №312 | B57: Пюре картофельное | D57: 150/5 | F57: 3.090 | G57: 8.282 | H57: 22.000 | I57: 172 | J57: 0.164 | K57: 7.943 | L57: 0.080 | M57: 3.000 | N57: 47.805 | O57: 98.835 | P57: 8.000 | Q57: 0.000
A58: №234 | B58: Биточки рыбные | D58: 80 | F58: 6.450 | G58: 4.240 | H58: 7.490 | I58: 116 | J58: 0.050 | K58: 0.480 | L58: 0.100 | M58: 0.646 | N58: 44.020 | O58: 137.060 | P58: 12.000 | Q58: 0.000
A59: №377 | B59: Чай с сахаром | D59: 200/15 | F59: 0.53 | G59: 0.000 | H59: 9.470 | I59: 40.000 | J59: 0 | K59: 0.270 | L59: 0.000 | M59: 0.000 | N59: 13.600 | O59: 22.130 | P59: 11.730 | Q59: 0.100
B60: Хлеб сельский,1с | D60: 20 | F60: 1.000 | G60: 0.200 | H60: 9.000 | I60: 44 | J60: 0.014 | K60: 0.000 | L60: 0.000 | M60: 0.108 | N60: 2.760 | O60: 12.720 | P60: 3.000 | Q60: 0.372
B61: Хлеб пшеничный | D61: 30 | F61: 2.280 | G61: 0.240 | H61: 14.760 | I61: 71 | J61: 0.033 | K61: 0.000 | L61: 0.000 | M61: 0.330 | N61: 6.000 | O61: 19.500 | P61: 4.200 | Q61: 0.330
A62: Итого по питанию: | F62: =SUM(F55:F61) -> 14.830 | G62: 15.002 | H62: 74.770 | I62: 528 | J62: 0.494 | K62: 24.933 | L62: 0.190 | M62: 4.384 | N62: 185.835 | O62: 301.255 | P62: 48.830 | Q62: 1.182
A63: 5-11классы
A64: №312 | B64: Пюре картофельное | D64: 180/5 | E64: 7.90 | F64: 3.708 | G64: 9.930 | H64: 26.396 | I64: 224 | J64: 0.104 | K64: 0.000 | L64: 0.120 | M64: 0.979 | N64: 19.740 | O64: 68.410 | P64: 10.175 | Q64: 1.030
A65: №234 | B65: Биточки рыбные | D65: 80 | E65: 21.15 | F65: 6.450 | G65: 4.240 | H65: 7.490 | I65: 116 | J65: 0.050 | K65: 0.480 | L65: 0.100 | M65: 0.646 | N65: 44.020 | O65: 137.060 | P65: 12.000 | Q65: 0.000
A66: №377 | B66: Чай с сахаром | D66: 200/15 | E66: 1.77 | F66: 0.53 | G66: 0.00 | H66: 9.47 | I66: 40.00 | J66: 0.00 | K66: 0.27 | L66: 0.00 | M66: 0.00 | N66: 13.60 | O66: 22.13 | P66: 11.73 | Q66: 0.10
B67: Хлеб пшеничный | D67: 30 | F67: 2.28 | G67: 0.24 | H67: 14.76 | I67: 71.00 | J67: 0.033 | K67: 0.00 | L67: 0.00 | M67: 0.11 | N67: 2.76 | O67: 12.72 | P67: 3.00 | Q67: 0.33
A68: Дели | B68: Ватрушка с повидлом | D68: 50 | F68: 2.70 | G68: 2.30 | H68: 23.30 | I68: 125.90 | J68: 0.00 | K68: 0.00 | L68: 0.00 | M68: 0.10 | N68: 6.00 | O68: 24.90 | P68: 4.40 | Q68: 0.30
B69: Хлеб сельский | D69: 20 | E69: 2.60 | F69: 1.000 | G69: 0.200 | H69: 9.000 | I69: 44 | J69: 0.014 | K69: 0.000 | L69: 0.000 | M69: 0.108 | N69: 2.760 | O69: 12.720 | P69: 3.000 | Q69: 0.372
A70: Итого по питанию: | E70: =SUM(E64:E69) -> 33.42 | F70: 16.660 | G70: 16.920 | H70: 90.410 | I70: 621 | J70: 0.168 | K70: 0.750 | L70: =SUM(L64:L69) -> 0.220 | M70: 1.941 | N70: 88.880 | O70: 277.940 | P70: 44.300 | Q70: 2.132
A71: ГПД:
B72: Борщ из свежей капусты | D72: 250 | E72: 7.90 | F72: 1.550 | G72: 1.870 | H72: 9.330 | I72: 67 | J72: 0.040 | K72: 9.970 | L72: 34.270 | M72: 5.799 | N72: 22.000 | O72: 204.000 | P72: 40.600 | Q72: 1.870
B73: Компот из сухофруктов | D73: 200 | E73: 3.53 | F73: 0.000 | G73: 0.000 | H73: 19.400 | I73: 77 | J73: 0.000 | K73: 0.000 | L73: 0.000 | M73: 0.000 | N73: 8.500 | O73: 1.800 | P73: 0.000 | Q73: 0.000
B74: Хлеб пшеничный | D74: 40 | E74: 2.08 | F74: 3.04 | G74: 0.32 | H74: 19.68 | I74: 94.66 | J74: 0.044 | K74: 0 | L74: 0 | M74: 0.44 | N74: 8 | O74: 26 | P74: 5.6 | Q74: 0.44
A75: Итого по питанию: | E75: =SUM(E72:E74) -> 13.51 | F75: 4.590 | G75: 2.190 | H75: 48.410 | I75: 239 | J75: 0.084 | K75: 9.970 | L75: 34.270 | M75: 6.239 | N75: 38.500 | O75: 231.800 | P75: 46.200 | Q75: 2.310
A76: 4 день 2 неделя
A77: 1-4классы
A78: №59 Дели 2011 | B78: Фрукты | D78: 100 | F78: 0.400 | G78: 0.400 | H78: 7.350 | I78: 47 | J78: 0.030 | K78: 8.000 | L78: 0.000 | M78: 0.200 | N78: 46.000 | O78: 11.000 | P78: 0.100 | Q78: 0.000
A79: №312 сбор. Рец. Дели 2011 | B79: Плов из птицы | D79: 50/150 | F79: 14.510 | G79: 14.720 | H79: 28.340 | I79: 364 | J79: 0.210 | K79: 4.900 | L79: 0.100 | M79: 1.200 | N79: 83.070 | O79: 237.000 | P79: 40.450 | Q79: 1.900
A80: №382 Дели 2015 | B80: Какао с молоком | D80: 200 | F80: 3.780 | G80: 0.670 | H80: 26.000 | I80: 125 | J80: 0.020 | K80: 1.330 | L80: 0.000 | M80: 0.012 | N80: 133.330 | O80: 111.110 | P80: 25.560 | Q80: 2.000
B81: Хлеб сельский,1с | D81: 20 | F81: 1.000 | G81: 0.200 | H81: 9.000 | I81: 44 | J81: 0.014 | K81: 0.000 | L81: 0.000 | M81: 0.108 | N81: 2.760 | O81: 12.720 | P81: 3.000 | Q81: 0.372
B82: Хлеб пшеничный | D82: 30 | F82: 2.280 | G82: 0.240 | H82: 14.760 | I82: 71 | J82: 0.033 | M82: 0.330 | N82: 6.000 | O82: 19.500 | P82: 4.200 | Q82: 0.330
A83: Итого по питанию: | F83: =SUM(F78:F82) -> 21.970 | G83: 16.230 | H83: 85.450 | I83: 651 | J83: 0.307 | K83: 14.230 | L83: 0.100 | M83: 1.850 | N83: 271.160 | O83: 391.330 | P83: 73.310 | Q83: 4.602
A84: 5-11классы
A85: №449,1996г | B85: Борщ из с/кап со смет | D85: 250/10 | E85: 33.7 | F85: 1.550 | G85: 1.870 | H85: 9.330 | I85: 67 | J85: 0.040 | K85: 9.970 | L85: 34.270 | M85: 5.799 | N85: 22.000 | O85: 204.000 | P85: 40.600 | Q85: 1.870
A86: №413 Дели2017 | B86: Сосиска в тесте | D86: 120 | E86: 8.80 | F86: 11.81 | G86: 19.88 | H86: 41.9 | I86: 380 | J86: 0 | K86: 0 | L86: 0 | M86: 0 | N86: 98.29 | O86: 128.33 | P86: 21.92 | Q86: 1.33
A87: ДеЛи,2011-544с,№376 | B87: Чай с сахаром | D87: 200/15 | E87: 1.77 | F87: 0.53 | G87: 0.00 | H87: 9.47 | I87: 40.00 | J87: 0.00 | K87: 2.80 | L87: 0.27 | M87: 0.00 | N87: 13.60 | O87: 22.13 | P87: 1.73 | Q87: 0.10
B88: Хлеб сельский | D88: 20 | F88: 1.00 | G88: 0.20 | H88: 9.00 | I88: 44.00 | J88: 0.01 | K88: 0.00 | L88: 0.00 | M88: 0.20 | N88: 2.76 | O88: 12.72 | P88: 3.00 | Q88: 0.37
B89: Хлеб пшеничный | D89: 30 | E89: 2.60 | F89: 2.280 | G89: 0.240 | H89: 14.760 | I89: 71 | J89: 0.033 | K89: 0.000 | L89: 0.000 | M89: 0.330 | N89: 6.000 | O89: 19.500 | P89: 4.200 | Q89: 0.330
A90: Итого по питанию: | E90: =SUM(E85:E89) -> 46.87 | F90: 17.840 | G90: 22.190 | H90: 84.460 | I90: 602 | J90: 0.087 | K90: 12.770 | L90: =SUM(L85:L89) -> 34.540 | M90: 6.327 | N90: 142.650 | O90: 386.680 | P90: 71.450 | Q90: 4.002
A91: ГПД:
B92: Каша ячневая молочная с маслом | D92: 200/5 | E92: 14.57 | F92: 7.07 | G92: 7.60 | H92: 36.80 | I92: 245.34 | J92: 0.14 | K92: 0.50 | L92: 0.00 | M92: 0.14 | N92: 146.92 | O92: 33.86 | P92: 159.07 | Q92: 0.90
B93: Чай с сахаром | D93: 200/15 | E93: 1.77 | F93: 0.530 | G93: 0.000 | H93: 9.470 | I93: 40 | J93: 0.000 | K93: 2.800 | L93: 0.270 | M93: 0.000 | N93: 13.600 | O93: 22.130 | P93: 1.730 | Q93: 0.100
B94: Хлеб пшеничный | D94: 40 | E94: 2.08 | F94: 3.04 | G94: 0.32 | H94: 19.68 | I94: 94.66 | J94: 0.044 | K94: 0 | L94: 0 | M94: 0.44 | N94: 8 | O94: 26 | P94: 5.6 | Q94: 0.44
A95: Итого по питанию: | E95: =SUM(E92:E94) -> 18.42 | F95: =SUM(F91:F94) -> 10.640 | G95: 7.920 | H95: 65.950 | I95: 380 | J95: 0.184 | K95: 3.300 | L95: 0.270 | M95: 0.580 | N95: 168.520 | O95: 81.990 | P95: 166.400 | Q95: 1.440
A96: 5 день 2неделя
A97: 1-4классы
A98: №45 Дели 2011 | B98: Капуста тушенная | D98: 60 | F98: 1.08 | G98: 1.64 | H98: 4.70 | I98: 38.00 | J98: 0.20 | K98: 8.24 | L98: 0.01 | M98: 0.10 | N98: 25.65 | O98: 0.01 | P98: 9.80 | Q98: 0.38
A99: №280 Сбор Дели 20111 | B99: Фрикадельки в соусе | D99: 55/50 | F99: 8.330 | G99: 7.743 | H99: 3.194 | I99: 175 | J99: 0.030 | K99: 0.650 | L99: 0.100 | M99: 1.256 | N99: 100.530 | O99: 110.070 | P99: 0.077 | Q99: 1.000
B100: Фрукты | D100: 100 | F100: 0.400 | G100: 0.400 | H100: 7.350 | I100: 47 | J100: 0.030 | K100: 8.000 | L100: 0.000 | M100: 0.100 | N100: 16.000 | O100: 11.000 | P100: 9.000 | Q100: 0.030
A101: №171 | B101: Каша гресневая рас | D101: 150 | F101: 6.662 | G101: 9.024 | H101: 34.000 | I101: 170 | J101: 0.292 | K101: 0.000 | L101: 0.000 | M101: 0.511 | N101: 44.822 | O101: 204.660 | P101: 48.600 | Q101: 1.310
A102: №388 | B102: Напиток из шиповника | D102: 200 | F102: 0.700 | G102: 0.800 | H102: 28.800 | I102: 133 | J102: 0.000 | K102: 0.200 | L102: 80.000 | M102: 0.000 | N102: 18.900 | O102: 3.100 | P102: 4.800 | Q102: 0.500
B103: Хлеб сельский,1с | D103: 20 | F103: 1.000 | G103: 0.200 | H103: 9.000 | I103: 44 | J103: 0.014 | K103: 0.000 | L103: 0.000 | M103: 0.108 | N103: 2.760 | O103: 12.720 | P103: 3.000 | Q103: 0.372
B104: Хлеб пшеничный | D104: 30 | F104: 2.280 | G104: 0.240 | H104: 14.760 | I104: 71 | J104: 0.033 | K104: 0.000 | L104: 0.000 | M104: 0.330 | N104: 6.000 | O104: 19.500 | P104: 4.200 | Q104: 0.330
A105: Итого по питанию: | F105: 20.450 | G105: 20.050 | H105: 101.800 | I105: 678 | J105: 0.600 | K105: 17.090 | L105: =SUM(L99:L104) -> 80.100 | M105: 2.410 | N105: 214.660 | O105: 361.060 | P105: 79.480 | Q105: 3.920
A106: 5-11классы
A107: №280 | B107: Фрикадельки в соусе | D107: 55/50 | E107: 14.28 | F107: 8.330 | G107: 7.743 | H107: 3.194 | I107: 175 | J107: 0.030 | K107: 0.650 | L107: 0.100 | M107: 1.256 | N107: 100.530 | O107: 110.070 | P107: 0.077 | Q107: 1.000
A108: №171 | B108: Каша гречневая расп. | D108: 180 | E108: 34.74 | F108: 7.943 | G108: 10.820 | H108: 40.790 | I108: 204 | J108: 0.350 | K108: 0.000 | L108: 0.511 | M108: 0.000 | N108: 44.870 | O108: 204.660 | P108: 48.600 | Q108: 1.310
A109: №376 | B109: Чай с сахаром | D109: 200/15 | E109: 1.77 | F109: 5.26 | G109: 8.35 | H109: 44.14 | I109: 274.22 | J109: 0.00 | K109: 0.00 | L109: 0.00 | M109: 0.00 | N109: 13.60 | O109: 170.74 | P109: 22.33 | Q109: 1.01
B110: Хлеб сельский | D110: 20 | F110: 1.00 | G110: 0.20 | H110: 9.00 | I110: 44.00 | J110: 0.01 | K110: 0.00 | L110: 0.00 | M110: 0.11 | N110: 2.76 | O110: 12.72 | P110: 3.00 | Q110: 0.37
B111: Хлеб пшеничный | D111: 30 | E111: 2.60 | F111: 2.280 | G111: 0.240 | H111: 14.760 | I111: 71 | J111: 0.033 | K111: 0.000 | L111: 0.000 | M111: 0.330 | N111: 6.000 | O111: 19.500 | P111: 4.200 | Q111: 0.330
A112: Итого по питанию: | E112: =SUM(E107:E111) -> 53.39 | F112: =SUM(F107:F111) -> 24.813 | G112: 28.120 | H112: =SUM(H107:H111) -> 111.884 | I112: 768 | J112: 0.427 | K112: 0.650 | L112: 0.611 | M112: 1.694 | N112: 167.760 | O112: 517.690 | P112: 78.207 | Q112: 4.020
A113: ГПД:
A114: №138,2004г | B114: Суп картофельный с бобовыми | D114: 250 | E114: 9.06 | F114: 5.450 | G114: 5.270 | H114: 16.530 | I114: 86 | J114: 0.228 | K114: 0.000 | L114: 0.000 | M114: 0.000 | N114: 42.670 | O114: 88.100 | P114: 35.570 | Q114: 2.050
A115: ДеЛи,2011-544с,№376 | B115: Чай с сахаром | D115: 200/15 | E115: 1.77 | F115: 0.53 | G115: 0.00 | H115: 9.47 | I115: 40.00 | J115: 0.00 | K115: 0.27 | L115: 0.00 | M115: 0.00 | N115: 13.60 | O115: 22.13 | P115: 11.73 | Q115: 0.10
B116: Хлеб пшеничный | D116: 40 | E116: 2.08 | F116: 3.04 | G116: 0.32 | H116: 19.68 | I116: 94.66 | J116: 0.044 | K116: 0 | L116: 0 | M116: 0.44 | N116: 8 | O116: 26 | P116: 5.6 | Q116: 0.44
A117: Итого по питанию: | E117: =SUM(E114:E116) -> 12.91 | F117: 3.007 | G117: =SUM(G114:G116) -> 5.590 | H117: 45.680 | I117: 220 | J117: 0.272 | K117: 0.270 | L117: 0.000 | M117: 0.440 | N117: 64.270 | O117: 136.230 | P117: 52.900 | Q117: 2.590
A118: 6 день 2 недели
A119: 1-4классы
A120: №52 Дели 2011 | B120: Салат из свеклы отварной | D120: 60 | F120: 0.855 | G120: 3.653 | H120: 11.580 | I120: 56 | J120: 0.011 | K120: 7.700 | L120: 0.000 | M120: 0.641 | N120: 121.090 | O120: 84.582 | P120: 12.540 | Q120: 0.198
A121: Дели 2017 | B121: Сосиска отварная | D121: 50 | F121: 3.700 | G121: 8.460 | H121: 0.400 | I121: 54 | J121: 0.019 | K121: 0.000 | L121: 0.000 | M121: 0.500 | N121: 17.500 | O121: 69.500 | P121: 8.000 | Q121: 0.000
A122: №203 дели | B122: Макаронные изделия отварные с маслом | D122: 150/5 | F122: 5.100 | G122: 4.468 | H122: 28.500 | I122: 187 | J122: 0.087 | K122: 0.000 | L122: 0.100 | M122: 0.816 | N122: 16.457 | O122: 57.009 | P122: 8.476 | Q122: 0.860
A123: №378 дели 2015 | B123: Чай с сахаром и молоком | D123: 150/50 | F123: 1.520 | G123: 1.350 | H123: 15.900 | I123: 81 | J123: 0.040 | K123: 1.330 | L123: 0.160 | M123: 0.000 | N123: 136.600 | O123: 92.800 | P123: 5.400 | Q123: 0.110
B124: Хлеб белый,1с | D124: 50 | F124: 2.85 | G124: 0.3 | H124: 18.45 | I124: 88.75 | J124: 0.04125 | K124: 0 | L124: 0 | M124: 0.4125 | N124: 7.5 | O124: 24.375 | P124: 5.25 | Q124: 0.4125
A125: Итого по питанию: | F125: =SUM(F120:F124) -> 14.025 | G125: 18.231 | H125: 74.830 | I125: 467 | J125: 0.198 | K125: 9.030 | L125: 0.260 | M125: 2.370 | N125: 299.147 | O125: 328.266 | P125: 39.666 | Q125: 1.581
A126: 5-11классы
A127: №413 дели 2017 | B127: Сосиска в тесте | D127: 120 | E127: 60.15 | F127: 11.810 | G127: 19.880 | H127: 41.090 | I127: 380 | J127: 0.000 | K127: 0.000 | L127: 0.000 | M127: 0.000 | N127: 98.290 | O127: 128.330 | P127: 21.920 | Q127: 1.330
B128: Фрукты | D128: 100 | F128: 0.400 | G128: 0.400 | H128: 7.350 | I128: 47 | J128: 0.030 | K128: 8.000 | L128: 0.000 | M128: 0.100 | N128: 16.000 | O128: 11.000 | P128: 9.000 | Q128: 0.030
A129: №378 дели 2015 | B129: Чай с сахаром и молоком | D129: 150/50/15 | E129: 1.77 | F129: 1.520 | G129: 1.350 | H129: 15.900 | I129: 81 | J129: 0.040 | K129: 1.330 | L129: 0.160 | M129: 0.000 | N129: 136.600 | O129: 92.800 | P129: 5.400 | Q129: 0.110
B130: Хлеб белый,1с | D130: 40 | E130: 2.08 | F130: 4.56 | G130: 0.48 | H130: 29.52 | I130: 142 | J130: 0.066 | K130: 0 | L130: 0 | M130: 0.66 | N130: 12 | O130: 39 | P130: 8.4 | Q130: 0.66
A131: Итого по питанию: | E131: =SUM(E127:E130) -> 64.00 | F131: =SUM(F127:F130) -> 18.290 | G131: 22.110 | H131: 93.860 | I131: 650 | J131: 0.136 | K131: 9.330 | L131: 0.160 | M131: 0.760 | N131: 262.890 | O131: 271.130 | P131: 44.720 | Q131: 2.130
